Cogmind - Beta 15 @@@ ROGUE MODE // 2025.09.17 @ 18:19:56 Player: Petvaria Result: Destroyed by H-88 Terminator with KE Penetrator Performance ------------- Evolutions (8) 4000 Regions Visited (30) 6000 Robots Destroyed (92) 460 Value Destroyed (2248) 2248 Prototype IDs (223) 4460 Alien Tech Used (6) 1200 Bonus (14104) 14104 TOTAL SCORE: 32472 Bonus ------- High Alert Combat Kills 4 Entered Garrisons 200 Used RIF Installer 500 Met Data Miner 300 Used Data Conduit 3000 Met Imprinter 300 Met Zhirov 300 Met Warlord at Base 500 MAIN.C Attacked Warlord 500 Found Hidden Lab 3000 Decrypted A0 Command 3000 Met Warlord at Research 2000 Pursued by Intercept 500 Cogmind --------- Core Integrity 0/1450 Matter 295/300 Energy 100/100 System Corruption 13% Temperature Cool (0) Movement Flying (40) Location -2/Garrison Parts ------- > --- POWER (2) -------- (None) > --- PROPULSION (7) --- Cooled Field Propulsion Drive > --- UTILITY (12) ----- Improved Signal Interpreter > --- WEAPON (3) ------- (None) > --- INVENTORY (5) ---- Light Antimatter Reactor Advanced Hacking Suite Transdimensional Reconstructor Peak State ------------ > --- POWER ------------ Light Fission Core > --- PROPULSION ------- Cooled VTOL Module Impulse Thruster Advanced Surge Thruster Q-thruster Q-thruster Improved Diametric Drive Improved Diametric Drive > --- UTILITY ---------- Advanced Power Amplifier Medium Storage Unit Improved Sensor Array Improved Signal Interpreter Improved Reaction Control System Hacking Suite System Mapper System Mapper Quantum Router LC Capacitor > --- WEAPON ----------- Guided Remote Datajack Vortex Lance > --- INVENTORY -------- Light Fission Core Improved VTOL Module Field Propulsion Drive Advanced Surge Thruster Cooled Field Propulsion Drive Q-thruster Experimental Targeting Computer Weapon Mount Makeshift Light Armor Plating Transdimensional Reconstructor [Rating: 175] Favorites ----------- Power Light Nuclear Core Engine Ion Engine Power Core Light Nuclear Core Reactor Light Antimatter Reactor Propulsion Light Treads Treads Light Treads Flight Unit Improved VTOL Module Utility Hacking Suite Device Improved Sensor Array Storage Medium Storage Unit Processor Improved Signal Interpreter Hackware Hacking Suite Protection Light Armor Plating Artifact LC Capacitor Weapon Improved Assault Rifle Energy Gun Gamma Rifle Energy Cannon Potential Cannon Ballistic Gun Improved Assault Rifle Launcher Neutron Missile Launcher Special Weapon Remote Datajack Impact Weapon Mace Slashing Weapon Makeshift Sword Piercing Weapon Vortex Lance Special Melee Weapon Datajack Build | -11 -10 -9 -8 -7 -7 -7 -7 -6 -6 -6 -6 -6 -5 -5 -5 -5 -5 -4 -4 -4 -4 -4 -4 -4 -3 -3 -3 -3 -2 -2 ------- Run | Yrd Mat Mat Mat Fac Low Low Zio Pro Fac Low Low Dat Pro Fac Upp Upp War Pro Fac Was Fac Upp Upp Zhi Pro Res Arm Lab Res Gar Slots Evolved 16 | . . 2 2 2 . . . . 2 . . . . 2 . . . . 2 . . . . . . 2 . . 2 . Power 1 | . . . . . . . . . . . . . . . . . . . . . . . . . . . . . 1 . Propulsion 5 | . . 1 1 . . . . . 1 . . . . . . . . . 1 . . . . . . 1 . . . . Utility 10 | . . 1 1 2 . . . . 1 . . . . 2 . . . . 1 . . . . . . 1 . . 1 . Weapon . | . . . . . . . . . . . . . . . . . . . . . . . . . . . . . . . Parts Attached 101 | 6 3 14 24 9 1 . 1 . 3 . . . 5 4 . . 6 . 1 . 6 . 1 . . 2 . 5 4 6 Power 11 | 1 . 1 3 1 . . . . . . . . 1 1 . . 1 . . . . . . . . . . . . 2 Engine 5 | 1 . 1 2 . . . . . . . . . 1 . . . . . . . . . . . . . . . . . Core 5 | . . . 1 1 . . . . . . . . . 1 . . 1 . . . . . . . . . . . . 1 Reactor 1 | . . . . . . . . . . . . . . . . . . . . . . . . . . . . . . 1 Propulsion 40 | 2 1 5 12 3 . . . . 1 . . . 3 . . . 2 . . . 4 . . . . 1 . . 2 4 Treads 18 | 2 1 4 11 . . . . . . . . . . . . . . . . . . . . . . . . . . . Leg . | . . . . . . . . . . . . . . . . . . . . . . . . . . . . . . . Wheel . | . . . . . . . . . . . . . . . . . . . . . . . . . . . . . . . Hover . | . . . . . . . . . . . . . . . . . . . . . . . . . . . . . . . Flight 22 | . . 1 1 3 . . . . 1 . . . 3 . . . 2 . . . 4 . . . . 1 . . 2 4 Utility 29 | 1 1 6 4 4 . . 1 . 1 . . . 1 3 . . 1 . 1 . . . . . . 1 . 3 1 . Device 4 | . . . 1 . . . . . . . . . 1 . . . . . . . . . . . . . . 1 1 . Storage 4 | 1 1 1 . 1 . . . . . . . . . . . . . . . . . . . . . . . . . . Processor 1 | . . . 1 . . . . . . . . . . . . . . . . . . . . . . . . . . . Hackware 8 | . . . . 3 . . . . 1 . . . . 3 . . 1 . . . . . . . . . . . . . Protection 11 | . . 5 2 . . . 1 . . . . . . . . . . . 1 . . . . . . 1 . 1 . . Artifact 1 | . . . . . . . . . . . . . . . . . . . . . . . . . . . . 1 . . Weapon 21 | 2 1 2 5 1 1 . . . 1 . . . . . . . 2 . . . 2 . 1 . . . . 2 1 . Energy Gun 1 | . . . . . . . . . . . . . . . . . . . . . . . . . . . . . 1 . Energy Cannon 1 | . . . . . . . . . . . . . . . . . . . . . . . . . . . . 1 . . Ballistic Gun 9 | 2 1 2 4 . . . . . . . . . . . . . . . . . . . . . . . . . . . Ballistic Cannon . | . . . . . . . . . . . . . . . . . . . . . . . . . . . . . . . Launcher 1 | . . . . . . . . . . . . . . . . . . . . . 1 . . . . . . . . . Special Weapon 3 | . . . . . . . . . . . . . . . . . . . . . 1 . 1 . . . . 1 . . Impact Weapon 1 | . . . 1 . . . . . . . . . . . . . . . . . . . . . . . . . . . Slashing Weapon 2 | . . . . 1 1 . . . . . . . . . . . . . . . . . . . . . . . . . Piercing Weapon 2 | . . . . . . . . . . . . . . . . . 2 . . . . . . . . . . . . . Special Melee Weapon 1 | . . . . . . . . . 1 . . . . . . . . . . . . . . . . . . . . . Unidentified Prototypes 17 | . . 2 1 . . 1 . . 1 . . . . 3 . . 1 . . . . . . 1 . . 1 6 . . Corrupted Parts 1 | . . . . . . . . . . . . . . . . . . . . . . . . . . . . . . 1 System Corruption 1 | . . . . . . . . . . . . . . . . . . . . . . . . . . . . . . 1 Parts Lost 49 | . . 4 7 3 . . . . . . . 2 4 . . . . . . . . . . . . 4 . . 4 21 Power 7 | . . 2 1 1 . . . . . . . . 1 . . . . . . . . . . . . . . . . 2 Propulsion 19 | . . 1 1 1 . . . . . . . 1 1 . . . . . . . . . . . . . . . 4 10 Utility 16 | . . . 3 . . . . . . . . 1 1 . . . . . . . . . . . . 2 . . . 9 Weapon 7 | . . 1 2 1 . . . . . . . . 1 . . . . . . . . . . . . 2 . . . . Highest Loss Streak 11 | . . 3 2 3 . . . . . . . 2 4 . . . . . . . . . . . . 4 . . 4 11 To Critical Strikes 1 | . . . 1 . . . . . . . . . . . . . . . . . . . . . . . . . . . Average Backups 10 | 2 7 10 14 6 5 8 10 10 9 10 10 10 8 7 10 10 10 10 9 10 10 10 10 10 10 9 9 9 9 6 Power . | . 1 1 1 . . . . . . . . . . 2 2 2 1 1 1 1 1 1 1 1 1 1 1 1 1 . Propulsion 4 | 1 4 4 6 2 1 1 2 2 2 4 4 4 3 2 2 3 3 3 3 3 3 3 4 4 4 4 5 5 3 1 Utility 2 | . . 1 3 . . . 1 1 1 2 2 2 3 1 3 3 3 4 3 4 4 4 4 4 4 3 3 3 3 3 Weapon 2 | . 1 3 3 2 2 4 5 5 4 3 3 2 1 1 1 1 1 1 1 1 1 1 1 . . . . . . . Tool/Special . | . . . . . . . . . . . . . . . . . . . . . . . . . . . . . . . Unused Backups 26 | . 1 4 5 3 . . . . . . . 2 . 1 1 . 2 . . . 1 . . 1 . . . . . 5 Power 2 | . . . . . . . . . . . . . . 1 1 . . . . . . . . . . . . . . . Propulsion 10 | . 1 3 3 3 . . . . . . . . . . . . . . . . . . . . . . . . . . Utility 8 | . . . . . . . . . . . . 1 . . . . 1 . . . 1 . . 1 . . . . . 4 Weapon 5 | . . 1 2 . . . . . . . . 1 . . . . 1 . . . . . . . . . . . . . Tool/Special 1 | . . . . . . . . . . . . . . . . . . . . . . . . . . . . . . 1 Average Slot Usage (%) 85 | . 84 92 78 86 92 91 85 85 86 93 93 91 82 87 88 88 90 94 90 90 94 95 97 100 100 88 81 82 73 55 Engine 3 | . 14 8 3 3 . . . . . . . . 3 1 . . . . . . . . . . . . . . . . Core 3 | . . . 4 3 7 7 7 7 6 6 6 6 . 4 5 5 5 5 5 5 5 5 5 5 5 4 4 4 4 1 Treads 15 | . 27 32 35 1 . . . . . . . . . . . . . . . . . . . . . . . . . . Flight 15 | . . . . 28 30 29 28 28 26 31 31 30 28 27 27 27 27 27 25 25 28 30 30 30 30 27 31 31 26 21 Device 3 | . . . . 7 7 7 7 7 6 6 6 5 5 5 5 5 5 5 5 5 5 5 5 5 5 4 4 4 11 9 Storage 7 | . 14 11 9 7 7 7 7 7 6 6 6 6 6 5 5 5 5 5 5 5 5 5 5 5 5 4 4 4 4 2 Processor 3 | . . . . 7 7 7 7 7 6 6 6 6 6 5 5 5 5 5 5 5 5 5 5 5 5 4 4 4 4 4 Hackware 13 | . . . . 16 23 22 21 21 24 25 25 25 18 32 33 33 33 33 30 30 30 30 30 30 30 24 22 20 16 13 Protection 4 | . . 17 6 . . . . . . . . . . . . . . . 5 5 5 5 5 5 5 6 4 4 . . Ballistic Gun 9 | . 27 22 18 2 . . . . . . . . . . . . . . . . . . . . . . . . . . Slashing Weapon 2 | . . . . 3 7 7 7 7 6 6 6 6 6 5 5 5 5 5 5 5 5 5 5 5 5 2 . . . . Peak Build Rating 175 | 6 7 14 27 36 38 39 39 39 49 49 49 51 55 83 83 83 109 109 115 115 134 125 129 130 130 135 117 170 175 151 Average Rating 49 | 4 6 11 21 33 36 38 38 39 43 49 49 49 47 81 83 83 95 109 115 115 122 125 126 129 130 124 117 138 154 108 On Entrance 76 | . 6 7 13 27 36 38 39 39 39 49 49 49 45 55 83 83 83 109 109 115 115 125 125 129 130 130 119 117 170 151 Naked Turns . | . . . . . . . . . . . . . . . . . . . . . . . . . . . . . . . Heaviest Build 46 | 14 24 36 36 19 19 18 18 18 19 19 19 19 27 26 20 20 24 24 25 25 28 25 28 28 28 32 26 46 45 38 Greatest Support 80 | 40 40 60 80 20 20 20 20 20 25 25 25 27 30 30 30 30 32 32 32 32 36 31 31 31 31 38 32 46 46 41 Greatest Overweight (x) 1 | . . . 1 . . . . . . . . . 1 . . . . . . . . . . . . . . . . . Average Overweight (x) . | . . . . . . . . . . . . . . . . . . . . . . . . . . . . . . . Largest Inventory Capacity 15 | 8 10 15 15 15 10 10 10 10 10 10 10 10 10 10 10 10 10 10 10 10 10 10 10 10 10 10 10 10 10 10 Average Capacity 11 | 7 9 11 15 10 10 10 10 10 10 10 10 10 10 10 10 10 10 10 10 10 10 10 10 10 10 10 10 10 10 7 Most Carried 15 | 6 10 15 15 15 7 10 10 10 10 10 10 10 10 10 10 10 10 10 10 10 10 10 10 10 10 10 9 10 10 9 Average Carried 10 | 3 7 10 14 6 5 8 10 10 9 10 10 9 8 7 10 10 9 10 9 10 9 9 10 9 10 9 9 9 9 6 Final Capacity 15 | 8 10 15 15 10 10 10 10 10 10 10 10 10 10 10 10 10 10 10 10 10 10 10 10 10 10 10 10 10 10 5 Final Carried 15 | 6 9 15 15 5 7 10 10 10 10 10 10 10 8 10 10 10 10 10 10 10 10 10 10 10 10 10 9 10 9 3 Class Distribution -------------------- 28% | Wizard-Sprinter 27% | Mutant 23% | Hacker-Sprinter 19% | Scavenger-Mutant Dominant Class ---------------- Mutant | -10/Materials Scavenger-Mutant | -9/Materials Mutant | -8/Materials Hacker-Sprinter | -7/Factory Hacker-Sprinter | -7/Lower Caves Hacker-Sprinter | -7/Lower Caves Hacker-Sprinter | -7/Zion Hacker-Sprinter | -6/Proximity Caves Hacker-Sprinter | -6/Factory Hacker-Sprinter | -6/Lower Caves Hacker-Sprinter | -6/Lower Caves Hacker-Sprinter | -6/Data Miner Hacker-Sprinter | -5/Proximity Caves Wizard-Sprinter | -5/Factory Wizard-Sprinter | -5/Upper Caves Wizard-Sprinter | -5/Upper Caves Wizard-Sprinter | -5/Warlord Wizard-Sprinter | -4/Proximity Caves Wizard-Sprinter | -4/Factory Wizard-Sprinter | -4/Waste Wizard-Sprinter | -4/Factory Wizard-Sprinter | -4/Upper Caves Wizard-Sprinter | -4/Upper Caves Wizard-Sprinter | -4/Zhirov Wizard-Sprinter | -3/Proximity Caves Wizard-Sprinter | -3/Research Wizard-Sprinter | -3/Armory Wizard-Sprinter | -3/Lab Wizard-Sprinter | -2/Research Wizard-Sprinter | -2/Garrison Resources | -11 -10 -9 -8 -7 -7 -7 -7 -6 -6 -6 -6 -6 -5 -5 -5 -5 -5 -4 -4 -4 -4 -4 -4 -4 -3 -3 -3 -3 -2 -2 ----------- Run | Yrd Mat Mat Mat Fac Low Low Zio Pro Fac Low Low Dat Pro Fac Upp Upp War Pro Fac Was Fac Upp Upp Zhi Pro Res Arm Lab Res Gar Matter Collected 3057 | 234 322 705 1170 92 51 10 40 . 3 . 36 . 44 . 40 . . 60 . . 15 45 34 40 7 . . . 104 5 Remotely . | . . . . . . . . . . . . . . . . . . . . . . . . . . . . . . . Salvage Created 3420 | . 325 957 1871 50 . 39 . . . . . 29 . . . . . . . . 44 . . 105 . . . . . . Parts 192 | . 18 62 99 3 . 3 . . . . . 3 . . . . . . . . 3 . . 1 . . . . . . Haulers Intercepted 11 | . 2 4 5 . . . . . . . . . . . . . . . . . . . . . . . . . . . Recyclers Shooed 2 | . 1 1 . . . . . . . . . . . . . . . . . . . . . . . . . . . . Parts Field Recycled . | . . . . . . . . . . . . . . . . . . . . . . . . . . . . . . . Retrieved Matter . | . . . . . . . . . . . . . . . . . . . . . . . . . . . . . . . Parts Self-Destructed 8 | . . . . . . 2 . . . . . . . . . 6 . . . . . . . . . . . . . . Prevented 2 | . . . . . . . . . . . . . . . . . . . . . . . 2 . . . . . . . Kills | -11 -10 -9 -8 -7 -7 -7 -7 -6 -6 -6 -6 -6 -5 -5 -5 -5 -5 -4 -4 -4 -4 -4 -4 -4 -3 -3 -3 -3 -2 -2 ------- Run | Yrd Mat Mat Mat Fac Low Low Zio Pro Fac Low Low Dat Pro Fac Upp Upp War Pro Fac Was Fac Upp Upp Zhi Pro Res Arm Lab Res Gar Combat Hostiles Destroyed 56 | . 4 22 29 . . . . . . . . . . . . . . . . . 1 . . . . . . . . . Melee 1 | . . . . . . . . . . . . . . . . . . . . . 1 . . . . . . . . . Guns 55 | . 4 22 29 . . . . . . . . . . . . . . . . . . . . . . . . . . . Classes Destroyed 13 | . 4 4 3 . . 1 . . . . . . . . . . . . . . 1 . . . . . . . . . Worker 2 | . . . 2 . . . . . . . . . . . . . . . . . . . . . . . . . . . Builder 1 | . . . 1 . . . . . . . . . . . . . . . . . . . . . . . . . . . Tunneler 2 | . . 1 1 . . . . . . . . . . . . . . . . . . . . . . . . . . . Hauler 11 | . 2 4 5 . . . . . . . . . . . . . . . . . . . . . . . . . . . Recycler 4 | . . 1 3 . . . . . . . . . . . . . . . . . . . . . . . . . . . Minesweeper 2 | . . . . . . 2 . . . . . . . . . . . . . . . . . . . . . . . . Operator 8 | . 2 1 3 2 . . . . . . . . . . . . . . . . . . . . . . . . . . Watcher 5 | . 2 1 2 . . . . . . . . . . . . . . . . . . . . . . . . . . . Swarmer 20 | . . 11 9 . . . . . . . . . . . . . . . . . . . . . . . . . . . Grunt 23 | . 4 7 12 . . . . . . . . . . . . . . . . . . . . . . . . . . . Sentry 9 | . . 4 5 . . . . . . . . . . . . . . . . . . . . . . . . . . . Hunter 3 | . . . 3 . . . . . . . . . . . . . . . . . . . . . . . . . . . Programmer 1 | . . . . . . . . . . . . . . . . . . . . . 1 . . . . . . . . . Best Kill Streak 4 | . 3 4 4 1 . 1 . . . . . 1 . . . . . . . . 1 . . . . . . . . . Combat Bots Only 4 | . 2 4 4 . . . . . . . . . . . . . . . . . 1 . . . . . . . . . Max Kills in Single Turn 2 | . 1 1 2 1 . 1 . . . . . 1 . . . . . . . . 1 . . . . . . . . . Gunslinging 1 | . . . 1 . . . . . . . . . . . . . . . . . . . . . . . . . . . Exploded . | . . . . . . . . . . . . . . . . . . . . . . . . . . . . . . . Melee 1 | . . . . . . . . . . . . . . . . . . . . . 1 . . . . . . . . . Uniques/NPCs Destroyed 2 | . . . . . . . . . . . . 1 . . . . . . . . . . . . . . . 1 . . Data Miner (-6/Data Miner) A5 (-3/Lab) Combat | -11 -10 -9 -8 -7 -7 -7 -7 -6 -6 -6 -6 -6 -5 -5 -5 -5 -5 -4 -4 -4 -4 -4 -4 -4 -3 -3 -3 -3 -2 -2 -------- Run | Yrd Mat Mat Mat Fac Low Low Zio Pro Fac Low Low Dat Pro Fac Upp Upp War Pro Fac Was Fac Upp Upp Zhi Pro Res Arm Lab Res Gar Hostile Shots Fired 757 | . 25 129 214 20 1 . . 1 4 . 6 4 17 1 . 10 3 10 . . 13 . 4 . . 15 . 3 55 222 Missed 292 | . 9 30 53 10 1 . . . 1 . 5 2 5 1 . 4 1 9 . . 7 . 4 . . 5 . 2 30 113 Hits 465 | . 16 99 161 10 . . . 1 3 . 1 2 12 . . 6 2 1 . . 6 . . . . 10 . 1 25 109 Projectile 465 | . 16 99 161 10 . . . 1 3 . 1 2 12 . . 6 2 1 . . 6 . . . . 10 . 1 25 109 AOE 1 | . . . . . . . . . . . . . . . . . . . . . . . . . . . . . . 1 Critical Strikes 19 | . . . 8 . . . . . . . . . . . . . . . . . . . . . . 1 . . 1 9 Actively Blocked 1 | . . . 1 . . . . . . . . . . . . . . . . . . . . . . . . . . . Part Disruptions 1 | . . . . . . . . . . . . . . . . . . . . . . . . . . . . . . 1 Damage Taken 8124 | . 205 1085 2189 373 . . . 18 53 . . 89 205 . . 94 35 15 . . 128 . . . . 606 . 29 487 2513 Core 2380 | . 24 116 205 168 . . . 18 53 . . 46 77 . . 46 16 . . . 39 . . . . 109 . . 65 1398 Absorbed by Shields 182 | . . . . . . . . . . . . . . . . . . . . . . . . . . . . . . 182 Redirected to Shielding 291 | . . 16 120 . . . . . . . . . . . . . . . . . 23 . . . . 132 . . . . Regen/Repaired (Parts) 1 | . . . . . . . . . . . . . . . . . 1 . . . . . . . . . . . . . Core Remaining (%) 84 | 100 90 71 62 . . . . 73 . . . . 79 . . . . 93 . . . . . . 96 . . 100 . . Volleys Fired 295 | . 44 91 154 3 . . . . . . . . . . . . . . . . . . . . . . . 1 2 . Largest 2 | . 2 2 2 2 . . . . . . . . . . . . . . . . . . . . . . . 1 1 . Hottest 75 | . 40 43 46 46 . . . . . . . . . . . . . . . . . . . . . . . 10 75 . Shots Fired 585 | . 88 182 306 6 . . . . . . . . . . . . . . . . . . . . . . . 1 2 . Gun 584 | . 88 182 306 6 . . . . . . . . . . . . . . . . . . . . . . . . 2 . Cannon . | . . . . . . . . . . . . . . . . . . . . . . . . . . . . . . . Launcher . | . . . . . . . . . . . . . . . . . . . . . . . . . . . . . . . Special 1 | . . . . . . . . . . . . . . . . . . . . . . . . . . . . 1 . . Kinetic 582 | . 88 182 306 6 . . . . . . . . . . . . . . . . . . . . . . . . . . Thermal . | . . . . . . . . . . . . . . . . . . . . . . . . . . . . . . . Explosive . | . . . . . . . . . . . . . . . . . . . . . . . . . . . . . . . Electromagnetic 2 | . . . . . . . . . . . . . . . . . . . . . . . . . . . . . 2 . Robot Hit Streak 19 | . 11 13 19 7 . . . . . . . . . . . . . . . . . . . . . . . 3 . . Robot Miss Streak 5 | . 4 4 5 2 . . . . . . . . . . . . . . . . . . . . . . . . . . Penetration Max . | . . . . . . . . . . . . . . . . . . . . . . . . . . . . . . . Secondary Targets 6 | . . 2 4 . . . . . . . . . . . . . . . . . . . . . . . . . . . Max Gunslinging Chain 1 | . . 1 1 . . . . . . . . . . . . . . . . . . . . . . . . . . . Shots Hit Robots 422 | . 57 121 227 6 . 2 . . 1 . . 1 . . . . . . . . 2 . . 4 . . . 1 . . Core Hits 158 | . 20 47 84 3 . 1 . . . . . 1 . . . . . . . . 1 . . 1 . . . . . . Critical Kills 2 | . 1 . 1 . . . . . . . . . . . . . . . . . . . . . . . . . . . Critical Parts Destroyed 2 | . . . 2 . . . . . . . . . . . . . . . . . . . . . . . . . . . Critical Strikes 4 | . 1 . 3 . . . . . . . . . . . . . . . . . . . . . . . . . . . Destroy 4 | . 1 . 3 . . . . . . . . . . . . . . . . . . . . . . . . . . . Melee Attacks 119 | . . . 1 11 . 3 1 4 10 . 8 6 . 11 . 2 . 4 4 . 23 . . 5 3 10 . 8 5 . Impact 5 | . . . 1 4 . . . . . . . . . . . . . . . . . . . . . . . . . . Slashing 86 | . . . . 7 . 3 1 4 9 . 8 6 . 11 . 2 . 4 3 . 18 . . 3 3 4 . . . . Piercing . | . . . . . . . . . . . . . . . . . . . . . . . . . . . . . . . Entropic 27 | . . . . . . . . . . . . . . . . . . . 1 . 5 . . 2 . 6 . 8 5 . Sneak Attacks 5 | . . . . 1 . 2 . . 1 . . 1 . . . . . . . . . . . . . . . . . . Combat Hostiles . | . . . . . . . . . . . . . . . . . . . . . . . . . . . . . . . Follow-up Attacks 1 | . . . . . . . . . . . . . . . . . . . . . . . . 1 . . . . . . Damage Inflicted 6696 | . 712 1614 3346 187 . 162 . . . . . 91 . . . . . . . . 162 . . 420 . 2 . . . . Guns 5727 | . 712 1614 3346 55 . . . . . . . . . . . . . . . . . . . . . . . . . . Cannons . | . . . . . . . . . . . . . . . . . . . . . . . . . . . . . . . Explosions . | . . . . . . . . . . . . . . . . . . . . . . . . . . . . . . . Melee 967 | . . . . 132 . 162 . . . . . 91 . . . . . . . . 162 . . 420 . . . . . . Ramming 2 | . . . . . . . . . . . . . . . . . . . . . . . . . . 2 . . . . Kinetic 5727 | . 712 1614 3346 55 . . . . . . . . . . . . . . . . . . . . . . . . . . Thermal . | . . . . . . . . . . . . . . . . . . . . . . . . . . . . . . . Explosive . | . . . . . . . . . . . . . . . . . . . . . . . . . . . . . . . Electromagnetic . | . . . . . . . . . . . . . . . . . . . . . . . . . . . . . . . Impact 24 | . . . . 24 . . . . . . . . . . . . . . . . . . . . . . . . . . Slashing 603 | . . . . 108 . 162 . . . . . 91 . . . . . . . . . . . 242 . . . . . . Piercing . | . . . . . . . . . . . . . . . . . . . . . . . . . . . . . . . Entropic 340 | . . . . . . . . . . . . . . . . . . . . . 162 . . 178 . . . . . . Highest Corruption 13 | . . 2 . . . . . . 1 1 1 1 1 . . . . . . 9 10 10 10 10 10 9 9 9 2 13 Average Corruption 3 | . . 2 . . . . . . 1 1 1 1 1 . . . . . . 9 9 10 10 10 10 9 9 9 1 4 Corruption Purged . | . . . . . . . . . . . . . . . . . . . . . . . . . . . . . . . Corruption Blocked . | . . . . . . . . . . . . . . . . . . . . . . . . . . . . . . . Effects 45 | . . 12 . . . . . . 3 . 1 . 1 . . . . . . . 6 1 3 . 4 2 . 5 3 4 Message Errors 12 | . . 3 . . . . . . . . . . . . . . . . . . 1 1 2 . 1 2 . 1 . 1 Matter Fused 10 | . . 2 . . . . . . 1 . . . 1 . . . . . . . 2 . 1 . 1 . . 1 1 . Heat Flow Errors 7 | . . 1 . . . . . . 1 . . . . . . . . . . . 2 . . . . . . 1 . 2 Energy Discharges 7 | . . 1 . . . . . . 1 . 1 . . . . . . . . . 1 . . . 1 . . 1 1 . Data Loss (minor) 4 | . . 3 . . . . . . . . . . . . . . . . . . . . . . . . . . . 1 Data Loss (major) 3 | . . . . . . . . . . . . . . . . . . . . . . . . . 1 . . 1 1 . Misfires 1 | . . 1 . . . . . . . . . . . . . . . . . . . . . . . . . . . . Weapon Failures 1 | . . 1 . . . . . . . . . . . . . . . . . . . . . . . . . . . . Overload Shots . | . . . . . . . . . . . . . . . . . . . . . . . . . . . . . . . Overflow Damage 64 | . . . . 4 . 42 . . . . . . . . . . . . . . 18 . . . . . . . . . Projectiles . | . . . . . . . . . . . . . . . . . . . . . . . . . . . . . . . Explosions . | . . . . . . . . . . . . . . . . . . . . . . . . . . . . . . . Melee 64 | . . . . 4 . 42 . . . . . . . . . . . . . . 18 . . . . . . . . . Knockbacks . | . . . . . . . . . . . . . . . . . . . . . . . . . . . . . . . Impact . | . . . . . . . . . . . . . . . . . . . . . . . . . . . . . . . Kinetic . | . . . . . . . . . . . . . . . . . . . . . . . . . . . . . . . Secondary . | . . . . . . . . . . . . . . . . . . . . . . . . . . . . . . . Self-Inflicted Damage 1 | . . . . . . . . . . . . . . . . . . . . . . . . . . 1 . . . . Shots . | . . . . . . . . . . . . . . . . . . . . . . . . . . . . . . . Rammed 1 | . . . . . . . . . . . . . . . . . . . . . . . . . . 1 . . . . Targets Rammed 1 | . . . . . . . . . . . . . . . . . . . . . . . . . . 1 . . . . Kicked . | . . . . . . . . . . . . . . . . . . . . . . . . . . . . . . . Crushed . | . . . . . . . . . . . . . . . . . . . . . . . . . . . . . . . Highest Temperature 331 | . 2 207 24 6 . . . . 188 . . 8 1 1 . 5 36 44 . . 274 34 27 10 17 326 . 331 207 254 Average Temperature 53 | . 2 62 10 3 . . . . 104 . . 5 1 1 . 3 14 16 . . 56 15 12 4 6 152 . 123 68 72 Received Heat Transfer 1386 | . 111 306 702 . . . . 9 . . . . 21 . . 18 18 . . . . . . . . 27 . . . 174 Siege Activations . | . . . . . . . . . . . . . . . . . . . . . . . . . . . . . . . Martial Activations . | . . . . . . . . . . . . . . . . . . . . . . . . . . . . . . . Shielding Activations . | . . . . . . . . . . . . . . . . . . . . . . . . . . . . . . . Robots Disrupted . | . . . . . . . . . . . . . . . . . . . . . . . . . . . . . . . Combat Hostiles . | . . . . . . . . . . . . . . . . . . . . . . . . . . . . . . . Robots Corrupted 1 | . . . . 1 . . . . . . . . . . . . . . . . . . . . . . . . . . Combat Hostiles . | . . . . . . . . . . . . . . . . . . . . . . . . . . . . . . . Parts Fried 2 | . . . . 2 . . . . . . . . . . . . . . . . . . . . . . . . . . Impact Corruptions 1 | . . . . 1 . . . . . . . . . . . . . . . . . . . . . . . . . . Robots Melted . | . . . . . . . . . . . . . . . . . . . . . . . . . . . . . . . Combat Hostiles . | . . . . . . . . . . . . . . . . . . . . . . . . . . . . . . . Parts Melted . | . . . . . . . . . . . . . . . . . . . . . . . . . . . . . . . Heat Transferred . | . . . . . . . . . . . . . . . . . . . . . . . . . . . . . . . Parts Sabotaged . | . . . . . . . . . . . . . . . . . . . . . . . . . . . . . . . Parts Stolen . | . . . . . . . . . . . . . . . . . . . . . . . . . . . . . . . Parts Stripped . | . . . . . . . . . . . . . . . . . . . . . . . . . . . . . . . Power Chain Reactions . | . . . . . . . . . . . . . . . . . . . . . . . . . . . . . . . Alert | -11 -10 -9 -8 -7 -7 -7 -7 -6 -6 -6 -6 -6 -5 -5 -5 -5 -5 -4 -4 -4 -4 -4 -4 -4 -3 -3 -3 -3 -2 -2 ------- Run | Yrd Mat Mat Mat Fac Low Low Zio Pro Fac Low Low Dat Pro Fac Upp Upp War Pro Fac Was Fac Upp Upp Zhi Pro Res Arm Lab Res Gar Maximum Alert Level 2 | . . 1 2 1 . . . . . . . . . . . . . . . . . . . . . . . . . 1 Low Security (%) 75 | 100 100 26 81 69 . . . . 100 . . . . 100 . . . . 100 100 100 . . . . 100 100 . 100 62 Level 1 22 | . . 73 13 30 . . . . . . . . . . . . . . . . . . . . . . . . . 37 Level 2 1 | . . . 5 . . . . . . . . . . . . . . . . . . . . . . . . . . . Level 3 . | . . . . . . . . . . . . . . . . . . . . . . . . . . . . . . . Level 4 . | . . . . . . . . . . . . . . . . . . . . . . . . . . . . . . . Level 5 . | . . . . . . . . . . . . . . . . . . . . . . . . . . . . . . . High Security . | . . . . . . . . . . . . . . . . . . . . . . . . . . . . . . . Max Security . | . . . . . . . . . . . . . . . . . . . . . . . . . . . . . . . Peak Influence 428 | . 42 354 428 245 . . . . 65 . . . . 76 . . . . 17 5 73 . . . . 8 . . 162 325 Initial 193 | . . . 117 193 . . . . . . . . . . . . . . 9 5 . . . . . . . . . 80 Average 116 | . 8 228 128 158 . . . . 16 . . . . 30 . . . . 9 4 20 . . . . 2 . . 96 174 Influence Increases 3654 | . 144 739 978 241 15 25 . . 140 . 75 20 60 157 . 115 . 15 21 . 149 . . 5 . 20 . . 270 465 Destroy 0b10 Robot/C 1180 | . 80 440 580 . . . . . . . . 20 . . . 40 . . . . 20 . . . . . . . . . Destroy 0b10 Robot/NC 180 | . 30 40 85 10 . 10 . . . . . . . . . . . . . . . . . 5 . . . . . . Destroy Leader 292 | . 28 100 154 . . . . . . . . . . . . . . . . . 10 . . . . . . . . . Successful Hack 107 | . 6 6 6 28 . . . . 13 . . . . 32 . . . . . . 8 . . . . 8 . . . . Disable Machine 135 | . . 30 30 15 . . . . 30 . . . . 15 . . . . . . . . . . . . . . 15 . Destroy Structure 110 | . . 3 3 8 . . . . 7 . . . . 20 . . . . 6 . 36 . . . . 12 . . 15 . Partial Spotted 120 | . . . . 30 . . . . 30 . . . . . . . . . 15 . 30 . . . . . . . . 15 Lose Combat Pursuer 1530 | . . 120 120 150 15 15 . . 60 . 75 . 60 90 . 75 . 15 . . 45 . . . . . . . 240 450 Influence Decreases 3339 | . 144 460 831 558 111 38 . . 140 . 30 65 60 152 5 56 59 . 19 17 92 42 15 5 . 18 2 . 163 257 Entered New Map 620 | . . . 162 233 41 4 . . . . . 45 . . 3 . 59 . 6 12 . 22 4 . . . 2 . . 27 Time Decay 1926 | . 144 420 599 100 70 34 . . 80 . 30 10 60 74 2 56 . . 13 5 60 20 11 5 . 10 . . 123 . Lost Part 406 | . . 40 70 30 . . . . . . . 10 . . . . . . . . . . . . . 6 . . 40 210 Lost Ally 22 | . . . . . . . . . . . . . . . . . . . . . . . . . . 2 . . . 20 Purge Threat 365 | . . . . 195 . . . . 60 . . . . 78 . . . . . . 32 . . . . . . . . . Squads Dispatched 22 | . 1 1 6 3 . . . . 4 . . . . 1 . 1 . . 1 . 3 . . . . . . . 1 . Investigation 9 | . . 1 1 . . . . . 3 . . . . 1 . . . . 1 . 2 . . . . . . . . . Extermination 3 | . . . . 1 . . . . 1 . . . . . . . . . . . 1 . . . . . . . . . Reinforcement 6 | . 1 . 3 2 . . . . . . . . . . . . . . . . . . . . . . . . . . Assault 2 | . . . 1 . . . . . . . . . . . . 1 . . . . . . . . . . . . . . Garrison 1 | . . . 1 . . . . . . . . . . . . . . . . . . . . . . . . . . . Intercept 1 | . . . . . . . . . . . . . . . . . . . . . . . . . . . . . 1 . Searches Triggered . | . . . . . . . . . . . . . . . . . . . . . . . . . . . . . . . Construction Impeded . | . . . . . . . . . . . . . . . . . . . . . . . . . . . . . . . Haulers Reinforced . | . . . . . . . . . . . . . . . . . . . . . . . . . . . . . . . Active Scanning Responses . | . . . . . . . . . . . . . . . . . . . . . . . . . . . . . . . Cargo Convoy Interrupts . | . . . . . . . . . . . . . . . . . . . . . . . . . . . . . . . Stealth | -11 -10 -9 -8 -7 -7 -7 -7 -6 -6 -6 -6 -6 -5 -5 -5 -5 -5 -4 -4 -4 -4 -4 -4 -4 -3 -3 -3 -3 -2 -2 --------- Run | Yrd Mat Mat Mat Fac Low Low Zio Pro Fac Low Low Dat Pro Fac Upp Upp War Pro Fac Was Fac Upp Upp Zhi Pro Res Arm Lab Res Gar Distress Signals 23 | . 1 6 6 1 . . . . . . . . . 2 . . . . . . . . . . . . . . 7 . Communications Jammed . | . . . . . . . . . . . . . . . . . . . . . . . . . . . . . . . Distress Signals . | . . . . . . . . . . . . . . . . . . . . . . . . . . . . . . . Times Spotted 301 | . 17 43 59 16 1 1 . 2 6 . 6 4 12 7 . 6 6 8 1 4 11 . 1 . . 11 . 1 32 46 Peak Tracking Total 21 | . 3 9 5 9 1 1 . . 5 . 5 4 8 6 . 6 7 7 1 4 5 . 2 . . 9 . 1 15 21 Tactical Retreats 37 | . . 4 6 2 1 1 . . 2 . 2 . 1 4 . 2 . 1 . . 1 . . . . . . . 4 6 Traps | -11 -10 -9 -8 -7 -7 -7 -7 -6 -6 -6 -6 -6 -5 -5 -5 -5 -5 -4 -4 -4 -4 -4 -4 -4 -3 -3 -3 -3 -2 -2 ------- Run | Yrd Mat Mat Mat Fac Low Low Zio Pro Fac Low Low Dat Pro Fac Upp Upp War Pro Fac Was Fac Upp Upp Zhi Pro Res Arm Lab Res Gar Traps Triggered 8 | . 2 1 1 . . . . . . . . . . . . . . . 1 . . . . . . . . . . 3 Indirectly . | . . . . . . . . . . . . . . . . . . . . . . . . . . . . . . . Trap Hack Attempts . | . . . . . . . . . . . . . . . . . . . . . . . . . . . . . . . Triggered . | . . . . . . . . . . . . . . . . . . . . . . . . . . . . . . . Disarmed . | . . . . . . . . . . . . . . . . . . . . . . . . . . . . . . . Reprogrammed . | . . . . . . . . . . . . . . . . . . . . . . . . . . . . . . . Reused . | . . . . . . . . . . . . . . . . . . . . . . . . . . . . . . . Traps Extracted . | . . . . . . . . . . . . . . . . . . . . . . . . . . . . . . . Installed . | . . . . . . . . . . . . . . . . . . . . . . . . . . . . . . . Triggered . | . . . . . . . . . . . . . . . . . . . . . . . . . . . . . . . Machines | -11 -10 -9 -8 -7 -7 -7 -7 -6 -6 -6 -6 -6 -5 -5 -5 -5 -5 -4 -4 -4 -4 -4 -4 -4 -3 -3 -3 -3 -2 -2 ---------- Run | Yrd Mat Mat Mat Fac Low Low Zio Pro Fac Low Low Dat Pro Fac Upp Upp War Pro Fac Was Fac Upp Upp Zhi Pro Res Arm Lab Res Gar Machines Disabled 11 | . . 2 2 1 . . . . 2 . . . . 1 . . . . . . . . . . . . . 2 1 . Max in Single Turn 1 | . . 1 1 1 . . . . 1 . . . . 1 . . . . . . . . . . . . . 1 1 . Garrison Access 2 | . . . . 1 . . . . . . . . . . . . . . . . . . . . . . . . 1 . Garrison Relay 2 | . . . . . . . . . . . . . . . . . . . . . . . . . . . . . . 2 Machines Repaired . | . . . . . . . . . . . . . . . . . . . . . . . . . . . . . . . Machines Dismantled . | . . . . . . . . . . . . . . . . . . . . . . . . . . . . . . . Machines Sabotaged . | . . . . . . . . . . . . . . . . . . . . . . . . . . . . . . . Overloaded Fab Kills . | . . . . . . . . . . . . . . . . . . . . . . . . . . . . . . . Hacking | -11 -10 -9 -8 -7 -7 -7 -7 -6 -6 -6 -6 -6 -5 -5 -5 -5 -5 -4 -4 -4 -4 -4 -4 -4 -3 -3 -3 -3 -2 -2 --------- Run | Yrd Mat Mat Mat Fac Low Low Zio Pro Fac Low Low Dat Pro Fac Upp Upp War Pro Fac Was Fac Upp Upp Zhi Pro Res Arm Lab Res Gar Machines Accessed 50 | . 1 2 4 6 1 1 . . 10 1 . 4 . 3 1 . 2 . 1 . 4 . . 2 . 1 . 2 4 . Terminals 22 | . 1 2 3 3 . . . . 5 . . . . 2 1 . . . . . 2 . . . . 1 . . 2 . Fabricators 11 | . . . . 2 . . . . 5 . . . . 1 . . . . 1 . 2 . . . . . . . . . Repair Stations . | . . . . . . . . . . . . . . . . . . . . . . . . . . . . . . . Recycling Units . | . . . . . . . . . . . . . . . . . . . . . . . . . . . . . . . Scanalyzers . | . . . . . . . . . . . . . . . . . . . . . . . . . . . . . . . Garrison Access 4 | . . . 1 1 . . . . . . . . . . . . . . . . . . . . . . . . 2 . Total Hacks 169 | . 2 6 9 17 1 1 . . 27 1 . 24 . 24 1 . 2 . 3 . 15 . . 8 . 2 . 20 6 . Successful 120 | . 1 1 2 7 1 1 . . 12 1 . 24 . 18 1 . 2 . 3 . 12 . . 8 . 2 . 20 4 . Failed 49 | . 1 5 7 10 . . . . 15 . . . . 6 . . . . . . 3 . . . . . . . 2 . Catastrophic 4 | . . . 2 . . . . . . . . . . 1 . . . . . . . . . . . . . . 1 . Database Lockouts . | . . . . . . . . . . . . . . . . . . . . . . . . . . . . . . . Manual 77 | . 2 6 6 12 . . . . 18 . . . . 17 . . 1 . 1 . 8 . . . . 2 . . 4 . Terminals 77 | . 2 6 6 12 . . . . 12 . . . . 21 1 . . . . . 11 . . . . 2 . . 4 . Fabricators 28 | . . . . 3 . . . . 15 . . . . 3 . . . . 3 . 4 . . . . . . . . . Repair Stations . | . . . . . . . . . . . . . . . . . . . . . . . . . . . . . . . Recycling Units . | . . . . . . . . . . . . . . . . . . . . . . . . . . . . . . . Scanalyzers . | . . . . . . . . . . . . . . . . . . . . . . . . . . . . . . . Garrison Access 7 | . . . 3 2 . . . . . . . . . . . . . . . . . . . . . . . . 2 . Terminal Hacks 91 | . . . . 3 1 1 . . 5 1 . 24 . 15 1 . 2 . . . 8 . . 8 . 1 . 20 1 . Record 31 | . . . . . . . . . . . . 7 . . 1 . . . . . . . . 4 . . . 19 . . Part Schematic 15 | . . . . . . . . . . . . 9 . 6 . . . . . . . . . . . . . . . . Robot Schematic 5 | . . . . . . . . . . . . 5 . . . . . . . . . . . . . . . . . . Prototype ID Bank 7 | . . . . . . . . . . . . 3 . . . . . . . . . . . 4 . . . . . . Open Door 5 | . . . . . 1 1 . . . 1 . . . . . . 2 . . . . . . . . . . . . . Branch Access Points 5 | . . . . 1 . . . . . . . . . 1 . . . . . . 1 . . . . 1 . . 1 . Unreport Threat 12 | . . . . 2 . . . . 3 . . . . 4 . . . . . . 3 . . . . . . . . . Locate Traps 1 | . . . . . . . . . . . . . . . . . . . . . 1 . . . . . . . . . Disarm Traps 1 | . . . . . . . . . . . . . . 1 . . . . . . . . . . . . . . . . Recall Investigation 4 | . . . . . . . . . 1 . . . . 1 . . . . . . 2 . . . . . . . . . Registered Components 2 | . . . . . . . . . 1 . . . . 1 . . . . . . . . . . . . . . . . Registered Prototypes 2 | . . . . . . . . . . . . . . 1 . . . . . . 1 . . . . . . . . . Release Object 1 | . . . . . . . . . . . . . . . . . . . . . . . . . . . . 1 . . Fabricator Hacks 11 | . . . . 1 . . . . 2 . . . . 2 . . . . 2 . 4 . . . . . . . . . Network Status 2 | . . . . 1 . . . . 1 . . . . . . . . . . . . . . . . . . . . . Load Schematic 4 | . . . . . . . . . . . . . . 1 . . . . 1 . 2 . . . . . . . . . Build 5 | . . . . . . . . . 1 . . . . 1 . . . . 1 . 2 . . . . . . . . . Repair Station Hacks . | . . . . . . . . . . . . . . . . . . . . . . . . . . . . . . . Recycling Unit Hacks . | . . . . . . . . . . . . . . . . . . . . . . . . . . . . . . . Scanalyzer . | . . . . . . . . . . . . . . . . . . . . . . . . . . . . . . . Garrison Access Hacks 3 | . . . . 1 . . . . . . . . . . . . . . . . . . . . . . . . 2 . Unlock Access 1 | . . . . . . . . . . . . . . . . . . . . . . . . . . . . . 1 . Seal Access 2 | . . . . 1 . . . . . . . . . . . . . . . . . . . . . . . . 1 . Unauthorized Hacks 15 | . 1 1 2 2 . . . . 5 . . . . 1 . . . . 1 . . . . . . 1 . . 1 . Terminals 7 | . 1 1 2 . . . . . 1 . . . . . . . . . . . . . . . . 1 . . 1 . Assimilate 2 | . . . 1 . . . . . . . . . . . . . . . . . . . . . . 1 . . . . Botnet 1 | . . . . . . . . . . . . . . . . . . . . . . . . . . . . . 1 . Operators 4 | . 1 1 1 . . . . . 1 . . . . . . . . . . . . . . . . . . . . . Fabricators 8 | . . . . 2 . . . . 4 . . . . 1 . . . . 1 . . . . . . . . . . . Fabnet 8 | . . . . 2 . . . . 4 . . . . 1 . . . . 1 . . . . . . . . . . . Repair Stations . | . . . . . . . . . . . . . . . . . . . . . . . . . . . . . . . Recycling Units . | . . . . . . . . . . . . . . . . . . . . . . . . . . . . . . . Scanalyzers . | . . . . . . . . . . . . . . . . . . . . . . . . . . . . . . . Garrison Access . | . . . . . . . . . . . . . . . . . . . . . . . . . . . . . . . Data Cores Recovered 2 | . 1 1 . . . . . . . . . . . . . . . . . . . . . . . . . . . . Used . | . . . . . . . . . . . . . . . . . . . . . . . . . . . . . . . Hacking Detections 27 | . . 2 2 4 . . . . 8 . . . . 3 . . . . 1 . 4 . . . . 1 . . 2 . Full Trace Events 8 | . . . 1 . . . . . 3 . . . . 1 . . . . 1 . 2 . . . . . . . . . Feedback Events 1 | . . . . . . . . . 1 . . . . . . . . . . . . . . . . . . . . . Corruption 1 | . . . . . . . . . 1 . . . . . . . . . . . . . . . . . . . . . Feedback Blocked . | . . . . . . . . . . . . . . . . . . . . . . . . . . . . . . . Robot Schematics Acquired 9 | . . . . . . . 4 . . . . 5 . . . . . . . . . . . . . . . . . . Robots Built . | . . . . . . . . . . . . . . . . . . . . . . . . . . . . . . . Authchips . | . . . . . . . . . . . . . . . . . . . . . . . . . . . . . . . Time . | . . . . . . . . . . . . . . . . . . . . . . . . . . . . . . . Total Robot Build Rating . | . . . . . . . . . . . . . . . . . . . . . . . . . . . . . . . Part Schematics Acquired 30 | . . . . . . . 15 . . . . 9 . 6 . . . . . . . . . . . . . . . . Parts Built 8 | . . . . . . . . . 2 . . . . 1 . . . . 2 . 3 . . . . . . . . . Authchips . | . . . . . . . . . . . . . . . . . . . . . . . . . . . . . . . Time 295 | . . . . . . . . . 64 . . . . 76 . . . . 47 . 108 . . . . . . . . . Total Part Build Rating 50 | . . . . . . . . . 16 . . . . 5 . . . . 10 . 19 . . . . . . . . . Parts Repaired . | . . . . . . . . . . . . . . . . . . . . . . . . . . . . . . . Time . | . . . . . . . . . . . . . . . . . . . . . . . . . . . . . . . Parts Recycled . | . . . . . . . . . . . . . . . . . . . . . . . . . . . . . . . Recycled Matter . | . . . . . . . . . . . . . . . . . . . . . . . . . . . . . . . Retrieved Matter . | . . . . . . . . . . . . . . . . . . . . . . . . . . . . . . . Retrieved Components . | . . . . . . . . . . . . . . . . . . . . . . . . . . . . . . . Parts Scanalyzed . | . . . . . . . . . . . . . . . . . . . . . . . . . . . . . . . Part Schematics Acquired . | . . . . . . . . . . . . . . . . . . . . . . . . . . . . . . . Parts Damaged . | . . . . . . . . . . . . . . . . . . . . . . . . . . . . . . . Bothacking | -11 -10 -9 -8 -7 -7 -7 -7 -6 -6 -6 -6 -6 -5 -5 -5 -5 -5 -4 -4 -4 -4 -4 -4 -4 -3 -3 -3 -3 -2 -2 ------------ Run | Yrd Mat Mat Mat Fac Low Low Zio Pro Fac Low Low Dat Pro Fac Upp Upp War Pro Fac Was Fac Upp Upp Zhi Pro Res Arm Lab Res Gar Used RIF Installer 1 | . . . . . . . . . . . . . . . . . . . . . . . . . . . . . . 1 Robots Hacked 14 | . . . . . . . . . 1 . 1 . 5 . . 3 1 1 . . . . . . . 1 . 1 . . Non-combat 1 | . . . . . . . . . 1 . . . . . . . . . . . . . . . . . . . . . Combat 12 | . . . . . . . . . . . 1 . 5 . . 3 1 1 . . . . . . . 1 . . . . Robot Hacks Applied 1 | . . . . . . . . . 1 . . . . . . . . . . . . . . . . . . . . . find_chute 1 | . . . . . . . . . 1 . . . . . . . . . . . . . . . . . . . . . Manual 1 | . . . . . . . . . . . . . . . . . . . . . . . . . . . . 1 . . Relay Couplers Released 9 | . . . . . . . . . . . . . . . . . . . . . . . . . . . . . . 9 Machine Destruction 9 | . . . . . . . . . . . . . . . . . . . . . . . . . . . . . . 9 Fabnet Peak Effective % 14 | . . . . . . . . 6 6 6 6 6 14 14 14 14 14 7 7 7 7 7 7 7 4 4 4 4 1 1 Autooverrided 12 | . . . . . . . . . . . 1 . 5 . . 3 1 1 . . . . . . . 1 . . . . Robots Rewired . | . . . . . . . . . . . . . . . . . . . . . . . . . . . . . . . Allies Hacked . | . . . . . . . . . . . . . . . . . . . . . . . . . . . . . . . Hacks Repelled . | . . . . . . . . . . . . . . . . . . . . . . . . . . . . . . . Allies | -11 -10 -9 -8 -7 -7 -7 -7 -6 -6 -6 -6 -6 -5 -5 -5 -5 -5 -4 -4 -4 -4 -4 -4 -4 -3 -3 -3 -3 -2 -2 -------- Run | Yrd Mat Mat Mat Fac Low Low Zio Pro Fac Low Low Dat Pro Fac Upp Upp War Pro Fac Was Fac Upp Upp Zhi Pro Res Arm Lab Res Gar Total Allies 15 | . . . . . . . . . . . 1 . 5 . . 3 1 1 . 1 . . . . . 2 . . . 1 Largest Group 2 | . . . . . . . . . . . 1 . 2 . . 2 1 . . 1 . . . . . 1 . . . 1 Highest-Rated Group 76 | . . . . . . . . . . . 29 . 58 . . 76 42 . . 46 . . . . . 26 . . . 29 Highest-Rated Ally 47 | . . . . . . . . . . . 29 . 41 . . 47 42 . . 46 . . . . . 26 . . . 29 Total Orders . | . . . . . . . . . . . . . . . . . . . . . . . . . . . . . . . Ally Attacks 35 | . . . . . . . . . . . 2 . 12 . . 11 3 1 . 1 . . . . . 2 . . . 3 Total Damage 767 | . . . . . . . . . . . 38 . 261 . . 218 93 24 . 13 . . . . . 24 . . . 96 Kills 2 | . . . . . . . . . . . . . . . . 2 . . . . . . . . . . . . . . Allies Corrupted 1 | . . . . . . . . . . . . . . . . . . . . . . . . . . . . . . 1 Allies Melted 1 | . . . . . . . . . . . 1 . . . . . . . . . . . . . . . . . . . Intel | -11 -10 -9 -8 -7 -7 -7 -7 -6 -6 -6 -6 -6 -5 -5 -5 -5 -5 -4 -4 -4 -4 -4 -4 -4 -3 -3 -3 -3 -2 -2 ------- Run | Yrd Mat Mat Mat Fac Low Low Zio Pro Fac Low Low Dat Pro Fac Upp Upp War Pro Fac Was Fac Upp Upp Zhi Pro Res Arm Lab Res Gar Active Infowar (turns) 4436 | . . . 83 224 152 274 302 70 256 71 194 48 347 188 81 530 335 135 59 22 194 42 48 41 105 87 1 112 279 156 Sensors 4436 | . . . 83 224 152 274 302 70 256 71 194 48 347 188 81 530 335 135 59 22 194 42 48 41 105 87 1 112 279 156 Robot Analysis Total 151 | . . . . . . . . . . . . 151 . . . . . . . . . . . . . . . . . . Derelict Logs Recovered 15 | . . . . . 1 2 1 1 . 2 2 . 2 . . . . 2 . . . 1 1 . . . . . . . Drone Launches . | . . . . . . . . . . . . . . . . . . . . . . . . . . . . . . . Drone Recoveries . | . . . . . . . . . . . . . . . . . . . . . . . . . . . . . . . Exploration | -11 -10 -9 -8 -7 -7 -7 -7 -6 -6 -6 -6 -6 -5 -5 -5 -5 -5 -4 -4 -4 -4 -4 -4 -4 -3 -3 -3 -3 -2 -2 ------------- Run | Yrd Mat Mat Mat Fac Low Low Zio Pro Fac Low Low Dat Pro Fac Upp Upp War Pro Fac Was Fac Upp Upp Zhi Pro Res Arm Lab Res Gar Turns Passed 8237 | 83 666 1082 2010 224 152 276 305 70 256 71 194 50 348 188 81 530 335 135 59 22 194 42 48 41 105 87 1 112 279 191 Spaces Moved 12286 | 55 302 438 598 504 530 849 1051 202 658 277 562 119 478 305 303 314 959 556 88 77 463 199 227 131 205 301 1 176 878 480 Core 22 | 20 . . . . . . . . . . . . . . . . . . . . . . . . . . . . . 2 Treads 1373 | 35 302 438 598 . . . . . . . . . . . . . . . . . . . . . . . . . . . Legs . | . . . . . . . . . . . . . . . . . . . . . . . . . . . . . . . Wheels . | . . . . . . . . . . . . . . . . . . . . . . . . . . . . . . . Hover . | . . . . . . . . . . . . . . . . . . . . . . . . . . . . . . . Flight 10891 | . . . . 504 530 849 1051 202 658 277 562 119 478 305 303 314 959 556 88 77 463 199 227 131 205 301 1 176 878 478 Fastest Speed 15 | 50 160 160 160 27 28 28 28 28 25 25 25 21 26 26 26 26 22 22 22 22 17 20 20 20 20 18 24 16 16 15 Average Speed 40 | 120 160 160 171 27 28 28 28 28 27 25 25 24 30 26 26 26 24 22 22 22 20 20 20 20 20 18 24 21 17 19 Slowest Speed 240 | 160 160 160 240 28 28 28 28 28 28 25 25 28 99 26 26 26 26 22 22 22 22 20 20 20 20 18 24 24 18 50 Overloaded Moves 14 | . . . . . . . . . . . . 14 . . . . . . . . . . . . . . . . . . Propulsion Burnouts . | . . . . . . . . . . . . . . . . . . . . . . . . . . . . . . . Robots Hopped 110 | . . . . 4 1 1 . . 14 . 4 1 . 2 . 2 1 3 . . 7 . . . . 8 . . 31 31 Potential Cave-ins 3 | . . . . . . . . . . . 3 . . . . . . . . . . . . . . . . . . . Cave-ins Triggered 1 | . . . . . . . . . . . . . . . . . . . . . . . . . . 1 . . . . Teleports 1 | . . . . . . . . . . . . . . . . . . . . . . . . . . . 1 . . . Exploration Rate (%) 48 | 3 47 43 43 16 66 94 85 35 19 50 63 77 59 6 48 45 93 74 2 63 12 46 55 60 50 16 . 99 23 49 Regions Visited 30 Branch Regions 18 Pre-discovered Areas 39 | . . . . . . 1 1 . . . 1 32 . . . . . . . . . . 1 3 . . . . . . Known Exits Taken 25 | . . . 1 1 1 1 1 1 1 1 1 1 1 1 1 1 1 1 . . 1 1 1 1 1 1 1 1 1 . Unknown Exits Taken 3 | 1 1 1 . . . . . . . . . . . . . . . . . . . . . . . . . . . . Scrap Searched 28 | . . . . . 2 5 5 1 . 1 2 . 1 . 3 . . 2 . . . 1 2 . 3 . . . . . Spaces Dug 82 | . . . . 8 . 1 . 4 7 . 8 1 . 10 . 2 . 4 3 . 18 . . . 3 8 . . 5 . Terrain Destroyed 82 | . . . . 8 . 1 . 4 7 . 8 1 . 10 . 2 . 4 3 . 18 . . . 3 8 . . 5 . Melee 82 | . . . . 8 . 1 . 4 7 . 8 1 . 10 . 2 . 4 3 . 18 . . . 3 8 . . 5 . Projectile . | . . . . . . . . . . . . . . . . . . . . . . . . . . . . . . . AOE . | . . . . . . . . . . . . . . . . . . . . . . . . . . . . . . . Terrain Rammed . | . . . . . . . . . . . . . . . . . . . . . . . . . . . . . . . Walls Destroyed . | . . . . . . . . . . . . . . . . . . . . . . . . . . . . . . . Machines Disabled . | . . . . . . . . . . . . . . . . . . . . . . . . . . . . . . . Actions | -11 -10 -9 -8 -7 -7 -7 -7 -6 -6 -6 -6 -6 -5 -5 -5 -5 -5 -4 -4 -4 -4 -4 -4 -4 -3 -3 -3 -3 -2 -2 --------- Run | Yrd Mat Mat Mat Fac Low Low Zio Pro Fac Low Low Dat Pro Fac Upp Upp War Pro Fac Was Fac Upp Upp Zhi Pro Res Arm Lab Res Gar Total 14755 | 72 397 641 1277 564 531 882 1059 210 709 277 602 133 680 400 304 757 1059 560 124 81 535 200 228 141 265 317 1 240 966 543 Wait 1892 | . 39 70 470 21 . 26 4 5 48 1 37 4 196 74 . 444 87 4 31 5 48 . 1 . 58 13 . 41 97 68 Move 12054 | 54 301 437 597 496 527 846 1050 201 630 276 553 116 477 300 302 309 956 549 88 76 448 198 226 130 204 285 . 175 822 425 Hop 90 | . . . . 3 1 1 . . 13 . 4 1 . 2 . 2 1 3 . . 7 . . . . 8 . . 24 20 Pick Up 85 | 12 7 14 11 4 2 3 . . 3 . . 3 2 7 1 . 2 . 1 . 1 1 . 2 . 1 . 4 4 . Fast Attach 38 | . 1 7 7 . . 2 2 . 2 . . . . . . . 3 . . . 2 . 1 2 . 1 . 4 2 2 Attach 57 | 6 3 3 7 13 . . . . 1 . . . 4 4 . . . . 1 . 1 . . . . 1 1 3 5 4 Detach 6 | . . . . 2 . . . . . . . . . . . . 1 . . . 1 . . . . . . . 1 1 Swap 30 | . . 6 14 1 1 . . . . . . . 1 . . . 3 . . . 3 . . 1 . . . . . . Drop 76 | . 2 13 16 10 . 1 2 . 2 . . 3 . 2 1 . 6 . . . 4 1 . 3 . . . 4 4 2 Fire 295 | . 44 91 154 3 . . . . . . . . . . . . . . . . . . . . . . . 1 2 . Melee 111 | . . . 1 11 . 3 1 4 10 . 8 6 . 11 . 2 . 4 3 . 20 . . 3 3 8 . 8 5 . Ram . | . . . . . . . . . . . . . . . . . . . . . . . . . . . . . . . Kick . | . . . . . . . . . . . . . . . . . . . . . . . . . . . . . . . Crush . | . . . . . . . . . . . . . . . . . . . . . . . . . . . . . . . Escape Stasis 21 | . . . . . . . . . . . . . . . . . . . . . . . . . . . . . . 21 Rewire . | . . . . . . . . . . . . . . . . . . . . . . . . . . . . . . . Trap . | . . . . . . . . . . . . . . . . . . . . . . . . . . . . . . . Miscellaneous . | . . . . . . . . . . . . . . . . . . . . . . . . . . . . . . . Route ------- -11/Scrapyard -10/Materials (discovered 2 exits: *Mat x2) -9/Materials (discovered 2 exits: *Mat / [*Min]) -8/Materials -7/Factory (discovered 3 exits: Sto / *Low x2) -7/Lower Caves -7/Lower Caves (discovered 2 exits: *Fac / *Zio) -7/Zion (discovered 2 exits: Dee / *Pro) -6/Proximity Caves -6/Factory (discovered 2 exits: *Low x2) -6/Lower Caves -6/Lower Caves (discovered 2 exits: *Fac / *Dat) -6/Data Miner -5/Proximity Caves -5/Factory (discovered 3 exits: Fac / *Upp x2) -5/Upper Caves -5/Upper Caves -5/Warlord -4/Proximity Caves -4/Factory -4/Waste -4/Factory (discovered 4 exits: *Upp x2 / Ext x2) -4/Upper Caves -4/Upper Caves -4/Zhirov -3/Proximity Caves -3/Research (discovered 3 exits: *Arm / Tes x2) -3/Armory -3/Lab -2/Research (discovered 3 exits: Qua x2 / Gar) -2/Garrison (discovered 1 exit: *Res) History --------- Turn | Location | Event 15 | -11/Scrapyard | Discovered new exit (range 15) 84 | -11/Scrapyard | Entered Materials 199 | -10/Materials | Discovered new exit (range 16) 300 | -10/Materials | Build established: Mutant 441 | -10/Materials | Discovered new exit (range 14) 684 | -10/Materials | Derelicts attacked the area 750 | -10/Materials | Entered another Materials area 750 | -9/Materials | Evolved 2 slots: Propulsion x1, Utility x1 950 | -9/Materials | Lost 3 parts (1p1n1w) 1242 | -9/Materials | Build established: Scavenger-Mutant 1293 | -9/Materials | Discovered new exit (range 15) 1813 | -9/Materials | Discovered new exit (range 7) 1832 | -9/Materials | Entered another Materials area 1832 | -8/Materials | Evolved 2 slots: Propulsion x1, Utility x1 2338 | -8/Materials | Build established: Mutant 3177 | -8/Materials | Garrison activated, responded to threat 3290 | -8/Materials | Discovered new exit (range 15) 3545 | -8/Materials | Build established: Scavenger-Mutant 3832 | -8/Materials | First assault squad dispatched 3840 | -8/Materials | Identified exit to Factory 3842 | -8/Materials | Entered Factory 3842 | -7/Factory | Evolved 2 slots: Utility x2 3901 | -7/Factory | Discovered new exit (range 5) 3996 | -7/Factory | Lost 3 parts (1p1n1w) 4043 | -7/Factory | Identified exit to Storage 4043 | -7/Factory | Identified exit to Lower Caves 4066 | -7/Factory | Entered Lower Caves 4153 | -7/Lower Caves | Build established: Hacker-Sprinter 4156 | -7/Lower Caves | Learned Factory terminal intel 4158 | -7/Lower Caves | Discovered new exit (range 5) 4159 | -7/Lower Caves | Identified exit to Lower Caves 4218 | -7/Lower Caves | Entered another Lower Caves area 4231 | -7/Lower Caves | Discovered new exit (range 9) 4424 | -7/Lower Caves | Learned Factory interactive machine intel 4454 | -7/Lower Caves | Discovered new exit (range 14) 4461 | -7/Lower Caves | Found Alien Artifact 4461 | -7/Lower Caves | Identified Core Expander 4461 | -7/Lower Caves | Installed Core Expander, added new Weapon slot 4490 | -7/Lower Caves | Identified exit to Zion 4494 | -7/Lower Caves | Entered Zion 4508 | -7/Zion | Discovered new exit (range 15) 4538 | -7/Zion | Identified exit to Deep Caves 4597 | -7/Zion | Learned location of Data Miner (-6) 4600 | -7/Zion | Learned Factory recycling unit intel 4680 | -7/Zion | Met Imprinter 4694 | -7/Zion | Learned 4 Factory zone layouts 4798 | -7/Zion | Identified exit to Proximity Caves 4799 | -7/Zion | Entered Proximity Caves 4806 | -6/Proximity Caves | Learned 12 Factory zone layouts 4866 | -6/Proximity Caves | Discovered new exit (range 12) 4869 | -6/Proximity Caves | Identified exit to Factory 4869 | -6/Proximity Caves | Entered Factory 4869 | -6/Factory | Evolved 2 slots: Propulsion x1, Utility x1 4870 | -6/Factory | Identified exit to Lower Caves 4871 | -6/Factory | Loaded intel: 53 interactive machine locations 4872 | -6/Factory | Loaded intel: 26 terminal locations 4873 | -6/Factory | Loaded intel: 8 recycling unit locations 4880 | -6/Factory | Spotted B-75 Beast 5086 | -6/Factory | Fabricated Q-thruster (x2) 5125 | -6/Factory | Entered Lower Caves 5154 | -6/Lower Caves | Learned Factory stockpile data 5181 | -6/Lower Caves | Learned Factory terminal intel 5193 | -6/Lower Caves | Discovered new exit (range 7) 5194 | -6/Lower Caves | Identified exit to Lower Caves 5196 | -6/Lower Caves | Entered another Lower Caves area 5201 | -6/Lower Caves | Discovered new exit (range 4) 5202 | -6/Lower Caves | Identified exit to Factory 5222 | -6/Lower Caves | Learned Factory machine intel 5285 | -6/Lower Caves | Learned location of Extension (-4) 5383 | -6/Lower Caves | Spotted B-75 Beast 5389 | -6/Lower Caves | Discovered new exit (range 5) 5390 | -6/Lower Caves | Identified exit to Data Miner 5390 | -6/Lower Caves | Entered Data Miner 5390 | -6/Data Miner | Discovered new exit (range 6) 5395 | -6/Data Miner | Met Data Miner 5403 | -6/Data Miner | Learned location of Section 7 (-2) 5403 | -6/Data Miner | Acquired the access code to Warlord's prototype stash 5405 | -6/Data Miner | Received God Mode back door access code from Data Miner 5413 | -6/Data Miner | Destroyed Data Miner 5416 | -6/Data Miner | Found Prototype Hackware 5418 | -6/Data Miner | Found Prototype Hackware 5419 | -6/Data Miner | Found Prototype Hackware 5421 | -6/Data Miner | Interfaced with the Data Conduit 5440 | -6/Data Miner | Identified exit to Proximity Caves 5440 | -6/Data Miner | Entered Proximity Caves 5462 | -5/Proximity Caves | Learned 4 Factory zone layouts 5469 | -5/Proximity Caves | Learned location of 1 exit from Factory 5475 | -5/Proximity Caves | Lost 4 parts (1p1n2u) 5771 | -5/Proximity Caves | Spotted B-75 Beast 5785 | -5/Proximity Caves | Discovered exit to Factory (range 15) 5788 | -5/Proximity Caves | Entered Factory 5788 | -5/Factory | Evolved 2 slots: Utility x2 5788 | -5/Factory | Identified Quantum Router 5789 | -5/Factory | Identified exit to Factory 5789 | -5/Factory | Identified System Mapper 5790 | -5/Factory | Identified Deep Network Scanner 5792 | -5/Factory | Loaded intel: 321 machine locations 5793 | -5/Factory | Loaded intel: 26 terminal locations 5862 | -5/Factory | Identified exit to Upper Caves 5953 | -5/Factory | Fabricated Exp. Propulsion Shielding? 5976 | -5/Factory | Entered Upper Caves 5983 | -5/Upper Caves | Spotted B-75 Beast 6014 | -5/Upper Caves | Encountered a Warlord checkpoint 6052 | -5/Upper Caves | Discovered new exit (range 16) 6053 | -5/Upper Caves | Found DCF Scrap (12 items) 6056 | -5/Upper Caves | Identified exit to Upper Caves 6057 | -5/Upper Caves | Entered another Upper Caves area 6078 | -5/Upper Caves | Build established: Wizard-Sprinter 6544 | -5/Upper Caves | Attracted the attention of an 0b10 outpost 6584 | -5/Upper Caves | Discovered new exit (range 9) 6587 | -5/Upper Caves | Identified exit to Warlord 6587 | -5/Upper Caves | Entered Warlord 6748 | -5/Warlord | Warlord's base attacked by MAIN.C 6748 | -5/Warlord | Opened Warlord's prototype stash 6755 | -5/Warlord | Found System Mapper 6759 | -5/Warlord | Found Exp. Phase Shifter 6776 | -5/Warlord | Found Prototype Piercing Weapon 6776 | -5/Warlord | Identified Vortex Lance 6778 | -5/Warlord | Found Vortex Lance 6797 | -5/Warlord | Met Warlord 6823 | -5/Warlord | Opened side exit 6920 | -5/Warlord | Discovered new exit (range 9) 6922 | -5/Warlord | Identified exit to Proximity Caves 6922 | -5/Warlord | Entered Proximity Caves 7005 | -4/Proximity Caves | Spotted B-86 Titan 7031 | -4/Proximity Caves | Learned location of 1 exit from Upper Caves 7039 | -4/Proximity Caves | Learned Research security intel 7055 | -4/Proximity Caves | Discovered exit to Factory (range 10) 7057 | -4/Proximity Caves | Entered Factory 7057 | -4/Factory | Evolved 2 slots: Propulsion x1, Utility x1 7058 | -4/Factory | Loaded intel: 270 machine locations 7110 | -4/Factory | Fabricated Weapon Mount (x2) 7116 | -4/Factory | Sucked down chute 7116 | -4/Factory | Entered Waste 7117 | -4/Waste | Met a frightened Derelict 7120 | -4/Waste | Spotted C-40 Crusher 7128 | -4/Waste | Spotted C-40 Crusher 7130 | -4/Waste | Spotted C-40 Crusher 7131 | -4/Waste | EMP discharged 7134 | -4/Waste | Spotted C-40 Crusher 7135 | -4/Waste | Spotted C-40 Crusher 7136 | -4/Waste | Discovered new exit (range 10) 7138 | -4/Waste | Identified exit to Factory 7138 | -4/Waste | Entered Factory 7139 | -4/Factory | Loaded intel: 265 machine locations 7160 | -4/Factory | Identified exit to Upper Caves 7160 | -4/Factory | Identified exit to Extension 7205 | -4/Factory | Fabricated Adv. Surge Thruster (x2) 7229 | -4/Factory | Fabricated Exp. Targeting Computer (x1) 7238 | -4/Factory | Spotted B-86 Titan 7302 | -4/Factory | System corruption reached 10% 7332 | -4/Factory | Entered Upper Caves 7333 | -4/Upper Caves | Identified exit to Upper Caves 7358 | -4/Upper Caves | Learned Research garrison access intel 7374 | -4/Upper Caves | Entered another Upper Caves area 7421 | -4/Upper Caves | Discovered new exit (range 5) 7422 | -4/Upper Caves | Identified exit to Zhirov 7422 | -4/Upper Caves | Entered Zhirov 7422 | -4/Zhirov | Discovered new exit (range 3) 7426 | -4/Zhirov | Met Zhirov 7432 | -4/Zhirov | Zhirov requested help retrieving the SGEMP Prototype 7435 | -4/Zhirov | Found Alien Artifact 7435 | -4/Zhirov | Identified Integrated Reactor 7435 | -4/Zhirov | Installed Integrated Reactor, increased core energy generation (+10) 7441 | -4/Zhirov | Found Alien Artifact 7462 | -4/Zhirov | Identified exit to Proximity Caves 7463 | -4/Zhirov | Entered Proximity Caves 7556 | -3/Proximity Caves | Spotted B-86 Titan 7565 | -3/Proximity Caves | Discovered new exit (range 16) 7568 | -3/Proximity Caves | Identified exit to Research 7568 | -3/Proximity Caves | Entered Research 7568 | -3/Research | Evolved 2 slots: Propulsion x1, Utility x1 7570 | -3/Research | Loaded intel: 103 machine locations 7571 | -3/Research | Loaded intel: 4 garrison access locations 7573 | -3/Research | Identified exit to Armory 7573 | -3/Research | Identified exit to Testing 7607 | -3/Research | Crushed by falling debris 7621 | -3/Research | Local machine network offline 7655 | -3/Research | Entered Armory 7655 | -3/Armory | Identified Transdimensional Reconstructor 7655 | -3/Armory | Warped through subspace to slip node 7655 | -3/Armory | Discovered new exit (range 1) 7655 | -3/Armory | Identified exit to Lab 7656 | -3/Armory | Loaded intel: 89 machine locations 7656 | -3/Armory | Entered Lab 7656 | -3/Lab | Discovered new exit (range 9) 7658 | -3/Lab | Identified exit to Research 7659 | -3/Lab | Hidden lab's door opened automatically 7659 | -3/Lab | Sensor layout match revealed 7660 | -3/Lab | Gained access to the hidden lab's interior 7665 | -3/Lab | Lost 4 parts (2u2w) 7677 | -3/Lab | Found Alien Artifact 7678 | -3/Lab | Identified Core Regenerator 7678 | -3/Lab | Used Core Regenerator, restored core integrity (+209) 7684 | -3/Lab | Found Alien Artifact 7685 | -3/Lab | Identified Integrated Mediator 7685 | -3/Lab | Installed Integrated Mediator, increased core attachment efficiency 7690 | -3/Lab | Found Transdimensional Reconstructor 7700 | -3/Lab | Found Prototype Protection 7700 | -3/Lab | Identified Hvy. Regenerative Plating 7703 | -3/Lab | Found Prototype Energy Cannon 7703 | -3/Lab | Identified Potential Cannon 7714 | -3/Lab | Decrypted terminal 7714 | -3/Lab | Acquired modification code for an L2 power cell 7717 | -3/Lab | Detected by scanners 7720 | -3/Lab | Decrypted terminal 7721 | -3/Lab | Decrypted terminal 7721 | -3/Lab | Found Alien Artifact 7721 | -3/Lab | Identified LC Capacitor 7727 | -3/Lab | Found Prototype Special Weapon 7727 | -3/Lab | Identified Gui. Remote Datajack 7742 | -3/Lab | Confronted by A5 7744 | -3/Lab | Hacked A5 with code downloaded from Data Conduit 7747 | -3/Lab | Destroyed A5 7768 | -3/Lab | Entered Research 7768 | -2/Research | Warlord forces began assault on 0b10 7768 | -2/Research | Evolved 2 slots: Power x1, Utility x1 7769 | -2/Research | Loaded intel: 100 machine locations 7812 | -2/Research | Identified exit to Quarantine 7858 | -2/Research | Spotted B-90 Cyclops 7860 | -2/Research | Met up with Warlord 7878 | -2/Research | Research machine network offline 7879 | -2/Research | Lost 4 parts (4n) 7895 | -2/Research | Spotted B-90 Cyclops 7919 | -2/Research | Lost 6 allies 7936 | -2/Research | Met DD-05H 8009 | -2/Research | Identified exit to Garrison 8047 | -2/Research | Entered Garrison 8048 | -2/Garrison | Loaded intel: 40 machine locations 8060 | -2/Garrison | Spotted B-90 Cyclops 8069 | -2/Garrison | Triggered checkpoint 8069 | -2/Garrison | Garrison Relay disabled 8082 | -2/Garrison | Triggered checkpoint 8083 | -2/Garrison | Triggered checkpoint 8086 | -2/Garrison | Triggered checkpoint 8095 | -2/Garrison | Discovered new exit (range 10) 8097 | -2/Garrison | Identified exit to Research 8098 | -2/Garrison | Attempted to access garrison exit controls, blocked by remote lockdown 8129 | -2/Garrison | Triggered checkpoint 8144 | -2/Garrison | Garrison Relay disabled 8145 | -2/Garrison | Lost 4 parts (2p2n) 8170 | -2/Garrison | Installed Relay Interface Framework 8180 | -2/Garrison | Rescued a captive Derelict 8185 | -2/Garrison | Lost 6 parts (3n3u) 8210 | -2/Garrison | Core integrity fell below 50% 8217 | -2/Garrison | System corruption reached 10% 8230 | -2/Garrison | Core integrity fell below 20% 8238 | -2/Garrison | Destroyed by H-88 Terminator with KE Penetrator Last Messages --------------- Field strength at 29. Stasis field depleted. Triggered Stasis Trap. A bubble of rippling energy engulfs the area. Field strength at 95. Field strength at 90. Field strength at 85. Imp. VTOL Module destroyed. Field strength at 73. Field strength at 62. Field strength at 56. Field strength at 37. Field strength at 18. Field strength at 12. Field strength at 1. Stasis field depleted. &|YB|I7 HE9Q1YNBR:JUT=<>AGF8Y=6H5 P-80 Master resets P-80 Master, system corruption cleaned. Penetrated by Slug. Map ----- +----------------------------------------------------+ | | | | | | | | | | | | | | | | | | | | | | | | | | | ?????????????????????????????????????????????????? | | ?????????????????????????????????????????????????? | | ?????????????????????????????????????????????????? | | ?????????????????????????????????????????????????? | | ?????????????#####???????????????????????????????? | | ?????????????#"""#???????????????????????????????? | | ?????????????#" "#?????????###???????????????????? | | ?????????????#" "#???????### ###?????????????????? | | ?????????????#" "#????##?# #?????????####????? | | ?????????????# #????? ####= ##???????"""""#????? | | ????????####### ########;;;*%;########## ##????? | | ????????# BB g =h[==ps^p #????? | | ????????# BB gg @gh!ghgpps #????? | | ????????# #############;;;;;|!Y### #######????? | | ????????# #???????????# ;[%#?# #??????????? | | ????????# #???????????### ### #?#####??????????? | | ????????# #?????????????###?# #????????????????? | | ""??????# #?????????????????# #????????????????? | | ????????# #?????????????????# #????????????????? | | ????????# #?????????????????# #????????????????? | | ????????# #???????????????### #????????????????? | | ????????# #???????????????# #????????????????? | | ????????# #???????????????# < #????????????????? | | ????????# #???????????????# #????????????????? | | ????????# #???????????????### #????????????????? | | ????????# #?????????????????# #????????????????? | | ????????# #?????????????????# #????????????????? | | ????????# #?????????????????# #????????????????? | | ????????# #?????????????????# #????????????????? | | ????????# #?????????????????# #????????????????? | | ????????# #?????????????????# #????????????????? | | ????????# #?????????????????# #????????????????? | | ##??????#""################### #????????????????? | | #??????# #????????????????? | | #??????# #????????????????? | | #??????# ######################????????????????? | | #??????# #?????????????????????????????????????? | +----------------------------------------------------+ Best States ------------- Heat Dissipation 49 Energy Generation 31 Energy Capacity 300 Matter Stores 300 Matter Capacity 300 Sight Range 16 Robot Scan Range 15 Terrain Scan Density 10 Power Amplification 30 Armor Coverage 300 Propulsion Shielding 90 Weapon Shielding 66 Evasion (%) 76 Recoil Reduction 4 Offensive Hacking 75 Defensive Hacking 35 Item Schematics ----------------- Focal Shield | -7/Zion | Archive Adv. ECM Suite | -7/Zion | Archive Thermal Shield | -7/Zion | Archive Gatling Laser | -7/Zion | Archive Tesla Rifle | -7/Zion | Archive Recalibrator | -7/Zion | Archive IFF Parser | -7/Zion | Archive Imp. Shield Generator | -7/Zion | Archive Imp. Actuator Array | -7/Zion | Archive Lyr. Light Armor Plating | -7/Zion | Archive Imp. Launcher Guidance Computer | -7/Zion | Archive Lgt. Fission Core | -7/Zion | Archive Plasma Cannon | -7/Zion | Archive Imp. Salvage Targeting Computer | -7/Zion | Archive Cloaking Device | -7/Zion | Archive Combat Drone Bay | -6/Data Miner | Free Lgt. Regenerative Plating | -6/Data Miner | Free Enh. Armored Leg | -6/Data Miner | Free Exp. Heat Sink | -6/Data Miner | Free Kinetic Spear | -6/Data Miner | Free Field Propulsion Array | -6/Data Miner | Free Adv. Thermal Shield | -6/Data Miner | Free Micro-nuke Launcher | -6/Data Miner | Free Fusion Bomb Launcher | -6/Data Miner | Free Imp. Propulsion Shielding | -5/Factory | Hacked Exp. Propulsion Shielding | -5/Factory | Hacked Cld. VTOL Module | -5/Factory | Hacked Adv. Surge Thruster | -5/Factory | Hacked Weapon Mount | -5/Factory | Hacked Exp. Targeting Computer | -5/Factory | Hacked Robot Schematics ------------------ S-27 Virus | -7/Zion | Archive W-25 Informer | -7/Zion | Archive T-07 Excavator | -7/Zion | Archive D-83 Annihilator | -7/Zion | Archive L-41 Fighter | -6/Data Miner | Free B-60 Warrior | -6/Data Miner | Free R-10 Processor | -6/Data Miner | Free H-77 Assassin | -6/Data Miner | Free G-50 Soldier | -6/Data Miner | Free Fabricated ------------ Q-thruster | x2 | -6/Factory | Preloaded Exp. Propulsion Shielding | x1 | -5/Factory Weapon Mount | x2 | -4/Factory Adv. Surge Thruster | x2 | -4/Factory Exp. Targeting Computer | x1 | -4/Factory Repaired ---------- Nothing Alien Tech Used ----------------- Core Expander Integrated Reactor Transdimensional Reconstructor Core Regenerator Integrated Mediator LC Capacitor Achievements -------------- None Challenges ------------ None Game ------ Seed SignalDeflectorShredder Manual? 0 Play Time 02:38:44 Cumulative 228.4 hours Start 2025.09.17 @ 14:29:33 End 2025.09.17 @ 18:19:56 Sessions 3 Manual Loads 0 Difficulty Rogue Special Mode None Game No. 200 Rogue 200 Adventurer 0 Explorer 0 Win Type - Total 13 Types 7/0/2/2/1/0/0/0/0/1 Lore% 93 Gallery% 86 Achievement% 75 Wizard Run 0 Options --------- Layout 1 ASCII 0 Keyboard 0 Movement Numpad Keybinds 0 Fullscreen 1 Font 24/Proggy Map View 50x35 Zoom Use 0% Tactical HUD 0 Map Filters NONE Filters NONE Steam 1 RUN: ec7aa7bf-fb67-474e-9b3d-b50cc38502a9